Cogmind - Beta 14 @@@ ROGUE MODE // 2024.09.07 @ 13:59:35 Player: Plexion Result: Destroyed by WU-YYE(R) with Subdweller Beam Cannon Performance ------------- Evolutions (0) 0 Regions Visited (3) 600 Robots Destroyed (39) 195 Value Destroyed (792) 792 Prototype IDs (0) 0 Alien Tech Used (0) 0 Bonus (0) 0 TOTAL SCORE: 1587 Bonus ------- None Cogmind --------- Core Integrity 0/250 Matter 290/300 Energy 100/100 System Corruption 0% Temperature Cool (9) Movement Core (400) Ox7 Location -10/Subcaves Parts ------- > --- POWER (1) -------- (None) > --- PROPULSION (2) --- (None) > --- UTILITY (2) ------ Large Storage Unit > --- WEAPON (2) ------- Mining Claw > --- INVENTORY (15) --- Subdweller Power Source Armored Treads Subdweller Monowheel Disposable Heat Sink Seismic Detector Light Armor Plating Light Armor Plating Subdweller Beam Cannon Grenade Launcher Grenade Launcher Peak State ------------ > --- POWER ------------ Light Angular Momentum Engine > --- PROPULSION ------- Light Treads Light Treads > --- UTILITY ---------- Large Storage Unit Hardened Medium Armor Plating > --- WEAPON ----------- EM Pulse Cannon Mining Claw > --- INVENTORY -------- Deuterium Engine Light Treads Light Treads Armored Treads Compact Wheel Machine Analyzer Seismic Detector Light Armor Plating Light Armor Plating Medium Laser Light Assault Rifle Grenade Launcher Grenade Launcher Signal Generator [Rating: 17] Favorites ----------- Power Light Angular Momentum Engine Engine Light Angular Momentum Engine Power Core Light Nuclear Core Propulsion Light Treads Treads Light Treads Utility Large Storage Unit Device Seismic Detector Storage Large Storage Unit Protection Hardened Medium Armor Plating Weapon Medium Laser Energy Gun Medium Laser Energy Cannon EM Pulse Cannon Ballistic Gun Assault Rifle Launcher Grenade Launcher Slashing Weapon Mining Claw Build | -11 -10 -10 -10 ------- Run | Yrd Mat Min Sub Slots Evolved . | . . . . Power . | . . . . Propulsion . | . . . . Utility . | . . . . Weapon . | . . . . Parts Attached 52 | 8 24 8 12 Power 6 | 1 3 1 1 Engine 5 | 1 2 1 1 Core 1 | . 1 . . Reactor . | . . . . Propulsion 12 | 2 6 . 4 Treads 12 | 2 6 . 4 Leg . | . . . . Wheel . | . . . . Hover . | . . . . Flight . | . . . . Utility 17 | 2 8 4 3 Device 8 | 1 4 2 1 Storage 2 | 1 1 . . Processor . | . . . . Hackware . | . . . . Protection 7 | . 3 2 2 Artifact . | . . . . Weapon 17 | 3 7 3 4 Energy Gun 5 | 1 3 1 . Energy Cannon 1 | . . 1 . Ballistic Gun 6 | 2 2 . 2 Ballistic Cannon . | . . . . Launcher 2 | . 2 . . Special Weapon . | . . . . Impact Weapon . | . . . . Slashing Weapon 3 | . . 1 2 Piercing Weapon . | . . . . Special Melee Weapon . | . . . . Unidentified Prototypes . | . . . . Parts Lost 11 | . . 1 10 Power 2 | . . . 2 Propulsion 5 | . . . 5 Utility 1 | . . . 1 Weapon 3 | . . 1 2 Highest Loss Streak 6 | . . 1 6 To Critical Strikes 1 | . . . 1 Average Slot Usage (%) 96 | . 99 99 93 Engine 12 | . 13 10 13 Core 1 | . . 3 . Treads 26 | . 27 28 24 Device 11 | . 11 11 12 Storage 14 | . 14 14 14 Protection 1 | . 2 2 1 Energy Gun 9 | . 13 13 3 Energy Cannon 7 | . . 5 13 Ballistic Gun 7 | . 14 8 2 Slashing Weapon 2 | . . . 6 Peak Build Rating 17 | 7 10 17 16 Average Rating 11 | 5 7 13 13 On Entrance 8 | . 7 10 15 Naked Turns . | . . . . Heaviest Build 45 | 15 33 45 43 Greatest Support 40 | 40 40 40 40 Greatest Overweight (x) 2 | . . 1 2 Average Overweight (x) . | . . . . Largest Inventory Capacity 15 | 8 15 15 15 Average Capacity 13 | 7 12 15 15 Most Carried 15 | 4 15 15 15 Average Carried 12 | 3 10 14 12 Final Capacity 15 | 8 15 15 15 Final Carried 15 | 4 14 15 10 Class Distribution -------------------- 54% | Mutant 45% | Scavenger-Mutant Dominant Class ---------------- Mutant | -10/Materials Scavenger-Mutant | -10/Mines Scavenger-Mutant | -10/Subcaves Resources | -11 -10 -10 -10 ----------- Run | Yrd Mat Min Sub Matter Collected 889 | 274 392 144 79 Remotely . | . . . . Salvage Created 1224 | 178 452 293 301 Parts 85 | 16 22 26 21 Haulers Intercepted 1 | . 1 . . Recyclers Shooed 4 | 1 3 . . Parts Field Recycled . | . . . . Retrieved Matter . | . . . . Parts Self-Destructed 2 | . . . 2 Prevented 1 | . . . 1 Kills | -11 -10 -10 -10 ------- Run | Yrd Mat Min Sub Combat Hostiles Destroyed 20 | . 9 5 6 Melee 2 | . . 1 1 Guns 6 | . 3 3 . Cannons 4 | . . 1 3 AOE 6 | . 6 . . Classes Destroyed 11 | 2 6 1 2 Worker 1 | . . 1 . Builder 4 | . 1 3 . Tunneler 8 | 5 1 2 . Hauler 1 | . 1 . . Recycler 3 | 1 2 . . Operator 1 | . 1 . . Watcher 1 | . 1 . . Swarmer 5 | . 3 2 . Grunt 9 | . 6 3 . Sentry 1 | . . . 1 Subdweller 5 | . . . 5 Best Kill Streak 5 | 3 5 5 2 Combat Bots Only 4 | . 4 2 2 Max Kills in Single Turn 2 | 1 2 1 1 Gunslinging . | . . . . Exploded 2 | . 2 . . Melee 1 | . . 1 1 Uniques/NPCs Destroyed . | . . . . Combat | -11 -10 -10 -10 -------- Run | Yrd Mat Min Sub Hostile Shots Fired 123 | . 35 21 67 Missed 36 | . 10 8 18 Damage Taken 1784 | . 338 193 1253 Core 262 | . 26 21 215 Absorbed by Shields . | . . . . Regen/Repaired (Parts) 92 | . 92 . . Core Remaining (%) 100 | 100 . . . Volleys Fired 84 | 13 33 14 24 Largest 2 | 2 2 2 2 Hottest 113 | 70 70 113 113 Shots Fired 139 | 26 57 27 29 Gun 105 | 26 49 25 5 Cannon 26 | . . 2 24 Launcher 8 | . 8 . . Special . | . . . . Kinetic 53 | 13 25 12 3 Thermal 52 | 13 24 13 2 Explosive 8 | . 8 . . Electromagnetic 26 | . . 2 24 Robot Hit Streak 26 | 4 15 4 26 Robot Miss Streak 7 | 1 7 2 1 Penetration Max . | . . . . Secondary Targets . | . . . . Shots Hit Robots 115 | 16 38 21 40 Core Hits 55 | 7 27 12 9 Critical Kills . | . . . . Critical Parts Destroyed . | . . . . Critical Strikes 2 | 1 . 1 . Burn 2 | 1 . 1 . Melee Attacks 40 | . . 8 32 Impact . | . . . . Slashing 40 | . . 8 32 Piercing . | . . . . Sneak Attacks 3 | . . 3 . Combat Hostiles . | . . . . Follow-up Attacks . | . . . . Damage Inflicted 2422 | 206 1014 409 793 Guns 846 | 206 413 187 40 Cannons 524 | . . 30 494 Explosions 588 | . 588 . . Melee 447 | . . 188 259 Ramming 17 | . 13 4 . Kinetic 442 | 131 197 74 40 Thermal 404 | 75 216 113 . Explosive 588 | . 588 . . Electromagnetic 524 | . . 30 494 Impact . | . . . . Slashing 447 | . . 188 259 Piercing . | . . . . Highest Corruption . | . . . . Average Corruption . | . . . . Corruption Purged . | . . . . Corruption Blocked . | . . . . Overload Shots . | . . . . Overflow Damage 38 | . 9 24 5 Projectiles . | . . . . Explosions 9 | . 9 . . Melee 29 | . . 24 5 Knockbacks . | . . . . Impact . | . . . . Kinetic . | . . . . Secondary . | . . . . Self-Inflicted Damage 60 | . 60 . . Shots 5 | . 5 . . Rammed 3 | . 3 . . Targets Rammed 5 | . 4 1 . Kicked . | . . . . Crushed 2 | . 1 1 . Highest Temperature 260 | 54 201 249 260 Average Temperature 58 | 18 46 73 118 Received Heat Transfer 1692 | . 108 123 1461 Effects 3 | . . 2 1 Interference 3 | . . 2 1 Siege Activations . | . . . . Robots Corrupted 2 | . . . 2 Combat Hostiles 2 | . . . 2 Parts Fried 2 | . . . 2 Impact Corruptions . | . . . . Robots Melted . | . . . . Combat Hostiles . | . . . . Parts Melted 3 | . 3 . . Heat Transferred 1332 | 296 629 407 . Parts Sabotaged . | . . . . Parts Stolen . | . . . . Parts Stripped . | . . . . Power Chain Reactions . | . . . . Alert | -11 -10 -10 -10 ------- Run | Yrd Mat Min Sub Peak Influence 203 | 30 203 188 . Initial 66 | . 19 66 . Average 86 | 15 95 91 . Maximum Alert Level 1 | . 1 . . Low Security (%) 98 | 100 97 100 . Level 1 1 | . 2 . . Level 2 . | . . . . Level 3 . | . . . . Level 4 . | . . . . Level 5 . | . . . . High Security . | . . . . Max Security . | . . . . Squads Dispatched 2 | . 1 1 . Investigation 1 | . . 1 . Extermination . | . . . . Reinforcement 1 | . 1 . . Assault . | . . . . Garrison . | . . . . Intercept . | . . . . Searches Triggered . | . . . . Construction Impeded . | . . . . Haulers Reinforced . | . . . . Active Scanning Responses . | . . . . Cargo Convoy Interrupts . | . . . . Stealth | -11 -10 -10 -10 --------- Run | Yrd Mat Min Sub Distress Signals 1 | . 1 . . Communications Jammed . | . . . . Distress Signals . | . . . . Times Spotted 40 | . 20 12 8 Peak Tracking Total 4 | . 4 3 4 Tactical Retreats 6 | . 3 2 1 Traps | -11 -10 -10 -10 ------- Run | Yrd Mat Min Sub Traps Triggered 3 | . 3 . . Indirectly . | . . . . Trap Hack Attempts . | . . . . Triggered . | . . . . Disarmed . | . . . . Reprogrammed . | . . . . Reused 4 | . . . 4 Traps Extracted . | . . . . Installed 4 | . . . 4 Triggered . | . . . . Most Traps Carried 4 | . . 4 4 Machines | -11 -10 -10 -10 ---------- Run | Yrd Mat Min Sub Machines Disabled 1 | . 1 . . Max in Single Turn 1 | . 1 . . Machines Repaired . | . . . . Machines Dismantled . | . . . . Machines Sabotaged . | . . . . Overloaded Fab Kills . | . . . . Hacking | -11 -10 -10 -10 --------- Run | Yrd Mat Min Sub Machines Accessed 9 | . 7 2 . Terminals 7 | . 6 1 . Fabricators . | . . . . Repair Stations 1 | . 1 . . Recycling Units . | . . . . Scanalyzers . | . . . . Garrison Access . | . . . . Total Hacks 23 | . 19 4 . Successful 14 | . 11 3 . Failed 8 | . 7 1 . Catastrophic 2 | . 2 . . Database Lockouts 1 | . 1 . . Manual 20 | . 17 3 . Terminals 20 | . 17 3 . Fabricators . | . . . . Repair Stations 2 | . 2 . . Recycling Units . | . . . . Scanalyzers . | . . . . Garrison Access . | . . . . Terminal Hacks 7 | . 4 3 . Part Schematic 2 | . . 2 . Robot Analysis 1 | . 1 . . Open Door 1 | . . 1 . Terminal Index 1 | . 1 . . Locate Traps 1 | . 1 . . Zone Layout 1 | . 1 . . Fabricator Hacks . | . . . . Repair Station Hacks 2 | . 2 . . Scan Component 1 | . 1 . . Repair 1 | . 1 . . Recycling Unit Hacks . | . . . . Scanalyzer . | . . . . Garrison Access Hacks . | . . . . Unauthorized Hacks 5 | . 5 . . Terminals 5 | . 5 . . Skim 5 | . 5 . . Fabricators . | . . . . Repair Stations . | . . . . Recycling Units . | . . . . Scanalyzers . | . . . . Garrison Access . | . . . . Data Cores Recovered 1 | . 1 . . Used . | . . . . Hacking Detections 7 | . 6 1 . Full Trace Events . | . . . . Feedback Events . | . . . . Feedback Blocked . | . . . . Robot Schematics Acquired . | . . . . Robots Built . | . . . . Authchips . | . . . . Time . | . . . . Total Robot Build Rating . | . . . . Part Schematics Acquired 2 | . . 2 . Parts Built . | . . . . Authchips . | . . . . Time . | . . . . Total Part Build Rating . | . . . . Parts Repaired 1 | . 1 . . Time 26 | . 26 . . Parts Recycled . | . . . . Recycled Matter . | . . . . Retrieved Matter . | . . . . Retrieved Components . | . . . . Parts Scanalyzed . | . . . . Part Schematics Acquired . | . . . . Parts Damaged . | . . . . Bothacking | -11 -10 -10 -10 ------------ Run | Yrd Mat Min Sub Used RIF Installer . | . . . . Robots Hacked . | . . . . Non-combat . | . . . . Combat . | . . . . Robot Hacks Applied . | . . . . Relay Couplers Released . | . . . . Fabnet Peak Effective % . | . . . . Robots Rewired . | . . . . Allies Hacked . | . . . . Hacks Repelled . | . . . . Allies | -11 -10 -10 -10 -------- Run | Yrd Mat Min Sub Total Allies . | . . . . Largest Group . | . . . . Highest-Rated Group . | . . . . Highest-Rated Ally . | . . . . Total Orders . | . . . . Ally Attacks . | . . . . Total Damage . | . . . . Kills . | . . . . Allies Corrupted . | . . . . Allies Melted . | . . . . Intel | -11 -10 -10 -10 ------- Run | Yrd Mat Min Sub Robot Analysis Total 1 | . 1 . . Derelict Logs Recovered 2 | . . 1 1 Drone Launches . | . . . . Drone Recoveries . | . . . . Exploration | -11 -10 -10 -10 ------------- Run | Yrd Mat Min Sub Turns Passed 3665 | 214 1120 880 1451 Spaces Moved 1739 | 101 515 451 672 Core 2 | 2 . . . Treads 1737 | 99 515 451 672 Legs . | . . . . Wheels . | . . . . Hover . | . . . . Flight . | . . . . Fastest Speed 50 | 50 160 160 160 Average Speed 168 | 157 160 167 178 Slowest Speed 320 | 160 160 240 320 Overloaded Moves . | . . . . Propulsion Burnouts . | . . . . Robots Hopped . | . . . . Cave-ins Triggered . | . . . . Exploration Rate (%) 48 | 5 81 68 39 Regions Visited 3 Branch Regions 2 Pre-discovered Areas 3 | . 2 . 1 Known Exits Taken 2 | . 1 1 . Unknown Exits Taken 1 | 1 . . . Scrap Searched 3 | . . 2 1 Spaces Dug 9 | . 6 . 3 Terrain Destroyed 33 | . 30 . 3 Melee 3 | . . . 3 Projectile . | . . . . AOE 30 | . 30 . . Terrain Rammed . | . . . . Walls Destroyed . | . . . . Machines Disabled . | . . . . Actions | -11 -10 -10 -10 --------- Run | Yrd Mat Min Sub Total 2236 | 126 744 533 833 Wait 268 | 1 152 33 82 Move 1736 | 100 514 450 672 Hop . | . . . . Pick Up 28 | 4 13 10 1 Fast Attach 15 | 7 7 . 1 Attach 8 | . 2 1 5 Detach . | . . . . Swap 29 | 1 15 7 6 Drop 19 | . 4 9 6 Fire 84 | 13 33 14 24 Melee 40 | . . 8 32 Ram . | . . . . Kick . | . . . . Crush 5 | . 4 1 . Escape Stasis . | . . . . Rewire . | . . . . Trap 4 | . . . 4 Miscellaneous . | . . . . Route ------- -11/Scrapyard -10/Materials (discovered 5 exits: *Mat x3 / *Min / Sub) -10/Mines (discovered 3 exits: *Mat x2 / *Sub) -10/Subcaves (discovered 2 exits: *Mat / Rec) History --------- Turn | Location | Event 18 | -11/Scrapyard | Discovered new exit (range 16) 215 | -11/Scrapyard | Entered Materials 358 | -10/Materials | Build established: Mutant 384 | -10/Materials | Central database locked down 541 | -10/Materials | Discovered new exit (range 7) 896 | -10/Materials | Repaired Lgt. Treads 961 | -10/Materials | Discovered new exit (range 3) 976 | -10/Materials | Identified exit to Mines 1017 | -10/Materials | Learned Storage trap positions 1050 | -10/Materials | Identified exit to Materials 1050 | -10/Materials | Identified exit to Subcaves 1075 | -10/Materials | Learned Storage garrison access intel 1096 | -10/Materials | Learned location of 2 exits from Subcaves 1097 | -10/Materials | Loaded intel: 11 interactive machine locations 1123 | -10/Materials | Learned location of Mines (-10) 1153 | -10/Materials | Learned 4 Recycling zone layouts 1193 | -10/Materials | Learned location of Mines (-8) 1335 | -10/Materials | Entered Mines 1336 | -10/Mines | Met a Derelict testing a Signal Generator 1343 | -10/Mines | Found Signal Generator 1522 | -10/Mines | Discovered exit to Materials (range 8) 1605 | -10/Mines | Build established: Scavenger-Mutant 1630 | -10/Mines | Met a Derelict shopkeep closing up shop 1739 | -10/Mines | Discovered exit to Materials (range 13) 1929 | -10/Mines | Discovered exit to Subcaves (range 3) 2026 | -10/Mines | Found a hidden stash of uninstalled traps 2167 | -10/Mines | Learned 2 Materials zone layouts 2215 | -10/Mines | Entered Subcaves 2216 | -10/Subcaves | Identified exit to Materials 2216 | -10/Subcaves | Identified exit to Recycling 2299 | -10/Subcaves | Learned location of Zion (-7) 2299 | -10/Subcaves | Met a Zionite searching for "candidates" 2364 | -10/Subcaves | Learned Materials stockpile data 3441 | -10/Subcaves | Build established: Mutant 3544 | -10/Subcaves | Disturbed a concealed Subdweller 3557 | -10/Subcaves | Disturbed a concealed Subdweller 3566 | -10/Subcaves | Disturbed a concealed Subdweller 3571 | -10/Subcaves | Core integrity fell below 50% 3643 | -10/Subcaves | Core integrity fell below 20% 3666 | -10/Subcaves | Destroyed by WU-YYE(R) with Subdweller Beam Cannon Last Messages --------------- 03555_ Searching scrap... 03555_ Found Sub. Beam Cannon. 03555_ Found 38 Matter. 03557_ WU-YYE(R) angrily emerges from the Twisted Machinery. 03560_ Critical hit (Meltdown: +260). 03566_ UB-D64(R) angrily emerges from the Twisted Machinery. 03579_ Critical hit (Meltdown: +280). 03587_ Critical hit (Meltdown: +290). 03592_ Deuterium Engine destroyed. 03594_ Lgt. Treads destroyed. 03598_ Critical hit (Meltdown: +280). 03600_ Overheating: System interference. 03600_ Mining Claw temporarily disabled. 03618_ EM Pulse Cannon destroyed. 03643_ WU-YYE(R) Sub. Monowheel ripped off. 03644_ Hrd. Medium Armor Plating destroyed. 03646_ WU-YYE(R) Sub. Power Source ripped off. 03655_ WU-YYE(R) Disposable Heat Sink ripped off. 03658_ Destroyed Sub. Optics. 03664_ Lgt. Treads destroyed. Map ----- +----------------------------------------------------+ | ####### ##?????????????????????? | | ##????????????????????? | | # ##???????????????????? | | ##### ###?????????????????? | | ????## ##????????????????? | | ???### ##???????????????? | | #### ##??????????????? | | # ## #??????????????? | | ##### #??????????????? | | # #####?### ###??????????????? | | ## #?????# ##????????????????? | | ## #?????# ##?????????????????? | | "" ##?##### ##??????????????????? | | "" #?## #???????????????????? | | "### ##???????????????????? | | ####?????????????????? | | ## ##????????????????? | | ## #????????????????? | | ### # ##????????????????? | | ### # #####??????????????? | | ### ## ### ##?????????????? | | ####?# #?????????????? | | #???# #?####????????? | | ### ##?## ###;;##???????? | | ###?# ### R ;#???????? | | ##???#####" #### @ #????????? | | #????????#" ##$< ## #????????? | | ###????????#"" #<<$$"# #????????? | | ?????????# ""# #"%$"## #????????? | | # #????????##"" #=!#] $## #????????? | | ## ???????? ""##!&# ##????????? | | #????????? ""?## ]& #?????????? | | ????????? # ""??#########?????????? | | ?????????" "#????????????????????? | | ???????? " # ???????????????????????? | | ???????????#????????????????????????? | | ????????????????????????????????????? | | ????????????????????????????????????? | | ????????????????????????????????????? | | ????????????????????????????????????? | | ????????????????????????????????????? | | ????????????????????????????????????? | | ????????????????????????????????????? | | ????????????????????????????????????? | | ????????????????????????????????????? | | ????????????????????????????????????? | | ????????????????????????????????????? | | ????????????????????????????????????? | | ????????????????????????????????????? | | ????????????????????????????????????? | +----------------------------------------------------+ Best States ------------- Heat Dissipation 25 Energy Generation 18 Energy Capacity 275 Matter Stores 300 Matter Capacity 300 Sight Range 16 Terrain Scan Density 10 Armor Coverage 225 Evasion (%) 40 Recoil Reduction 2 Item Schematics ----------------- Hcp. Storage Unit | -10/Mines | Hacked Huge Storage Unit | -10/Mines | Hacked Robot Schematics ------------------ None Fabricated ------------ Nothing Alien Tech Used ----------------- None Achievements -------------- None Challenges ------------ None Game ------ Seed CarbideSurveybotMatrix Manual? 0 Play Time 00:21:23 Cumulative 626.5 hours Start 2024.09.07 @ 13:43:08 End 2024.09.07 @ 13:59:35 Sessions 1 Manual Loads 0 Difficulty Rogue Special Mode None Game No. 679 Rogue 592 Adventurer 87 Explorer 0 Win Type - Total 38 Types 8/0/24/1/1/1/3/0/0 Lore% 94 Gallery% 93 Achievement% 80 Wizard Run 0 Options --------- Layout 0 ASCII 0 Keyboard 1 Movement Numpad Keybinds 0 Fullscreen 2 Font 16/SmallcapsGlow Map View 88x55 Zoom Use 0% Tactical HUD 1 Map Filters NONE Filters NONE Steam 1 RUN: 49e0a501-1cc3-41d4-9761-c1cd8ffc2503